fUST/lending_fUST_20240629
["ID","MTS","AMOUNT","RATE_DAILY","PERIOD"]
[330600660,1719609071008,-500.0,0.00023835,4]
[330600661,1719609071023,-900.52,0.00023835,4]
[330600662,1719609071032,-620.45726385,0.00023835,2]
[330600663,1719609071042,-300.14040543,0.00023835,4]
[330600664,1719609071053,-2915.15,0.00023835,4]
[330600665,1719609071063,-1075.26,0.00023835,4]
[330600666,1719609071072,-2606.56,0.00023835,4]
[330600667,1719609071082,-500.0,0.00023835,4]
[330600668,1719609071094,-898.0,0.00023835,4]
[330600669,1719609071104,-1017.0,0.00023835,4]
[330600670,1719609071114,-500.0,0.00023835,4]
[330600671,1719609071123,-518.13559302,0.00023835,4]
[330600672,1719609071131,-769.17,0.00023835,4]
[330600673,1719609071141,-724.43,0.00023835,4]
[330600674,1719609071150,-500.0,0.00023835,4]
[330600675,1719609071159,-500.0,0.00023835,4]
[330600676,1719609071169,-1811.19,0.00023835,4]
[330600677,1719609071179,-500.0,0.00023835,4]
[330600678,1719609071188,-500.0,0.00023835,4]
[330600679,1719609071198,-500.0,0.00023835,4]
[330600680,1719609071210,-500.0,0.00023835,4]
[330600681,1719609071219,-555.14,0.00023835,4]
[330600682,1719609071228,-745.75,0.00023835,4]
[330600683,1719609071238,-500.0,0.00023835,4]
[330600684,1719609071247,-1060.47,0.00023835,4]
[330600685,1719609071256,-561.23,0.00023835,4]
[330600686,1719609071265,-1646.45,0.00023835,4]
[330600687,1719609071274,-500.0,0.00023835,4]
[330600688,1719609071284,-500.0,0.00023835,4]
[330600689,1719609071293,-1636.48,0.00023835,4]
[330600690,1719609071302,-2903.41,0.00023835,4]
[330600691,1719609071311,-610.94313317,0.00023835,4]
[330600692,1719609071320,-500.0,0.00023835,4]
[330600693,1719609071329,-23113.58,0.00023835,4]
[330600694,1719609071338,-882.01,0.00023835,4]
[330600695,1719609071348,-1643.03,0.00023835,4]
[330600696,1719609071357,-500.0,0.00023835,4]
[330600697,1719609071367,-628.52,0.00023835,4]
[330600698,1719609071376,-439.19566988,0.00023835,4]
[330600699,1719609071385,-1414.53,0.00023835,4]
[330600700,1719609071394,-500.0,0.00023835,4]
[330600701,1719609071404,-500.0,0.00023835,4]
[330600702,1719609071413,-500.0,0.00023835,4]
[330600703,1719609071423,-500.0,0.00023835,4]
[330600704,1719609071432,-11320.71,0.00023835,4]
[330600705,1719609071441,-555.85,0.00023835,4]
[330600706,1719609071450,-500.0,0.00023835,4]
[330600707,1719609071461,-644.76,0.00023835,4]
[330600708,1719609071471,-585.25,0.00023835,4]
[330600709,1719609071480,-756.94,0.00023835,4]
[330600710,1719609071490,-500.0,0.00023835,4]
[330600711,1719609071499,-1188.67,0.00023835,4]
[330600712,1719609071509,-500.0,0.00023835,4]
[330600713,1719609071518,-1280.69,0.00023835,4]
[330600714,1719609071527,-788.02,0.00023835,4]
[330600715,1719609071536,-500.0,0.00023835,4]
[330600716,1719609071545,-3712.0,0.00023835,4]
[330600717,1719609071555,-2279.24,0.00023835,4]
[330600718,1719609071564,-500.0,0.00023835,4]
[330600719,1719609071574,-500.0,0.00023835,4]
[330600720,1719609071583,-4032.61,0.00023835,4]
[330600721,1719609071592,-227.79,0.00023835,4]
[330600722,1719609071601,-1001.0,0.00023835,4]
[330600723,1719609071610,-2069.86,0.00023835,4]
[330600724,1719609071619,-500.0,0.00023835,4]
[330600725,1719609071629,-5418.01,0.00023835,4]
[330600726,1719609071638,-826.19,0.00023835,4]
[330600727,1719609071648,-474.58723752,0.00023835,4]
[330600728,1719609071657,-803.14,0.00023835,4]
[330600729,1719609071667,-939.69,0.00023835,4]
[330600730,1719609071676,-60694.4,0.00023835,4]
[330600731,1719609071685,-2175.07,0.00023835,4]
[330600732,1719609071694,-3733.28,0.00023835,4]
[330600733,1719609071703,-500.0,0.00023835,4]
[330600734,1719609071713,-500.0,0.00023835,4]
[330600735,1719609071722,-7121.33,0.00023835,4]
[330600736,1719609071731,-521.59,0.00023835,4]
[330600737,1719609071740,-500.0,0.00023835,4]
[330600738,1719609071749,-834.09,0.00023835,4]
[330600739,1719609071760,-4094.82,0.00023835,4]
[330600740,1719609071769,-582.3,0.00023835,4]
[330600741,1719609071778,-689.13,0.00023835,4]
[330600742,1719609071787,-1575.66,0.00023835,4]
[330600743,1719609071796,-1770.99,0.00023835,4]
[330600744,1719609071805,-12345.82,0.00023835,4]
[330600745,1719609071814,-651.08,0.00023835,4]
[330600746,1719609071823,-500.0,0.00023835,4]
[330600747,1719609071834,-500.0,0.00023835,4]
[330600748,1719609071844,-500.0,0.00023835,4]
[330600749,1719609071854,-1018.4,0.00023835,4]
[330600750,1719609071864,-500.0,0.00023835,4]
[330600751,1719609071873,-212.48857552,0.00023835,4]
[330600752,1719609071882,-2468.56,0.00023835,4]
[330600753,1719609071891,-12723.98,0.00023835,4]
[330600754,1719609071900,-500.0,0.00023835,4]
[330600755,1719609071910,-1210.66,0.00023835,4]
[330600756,1719609071919,-500.0,0.00023835,2]
[330600757,1719609071928,-923.2,0.00023835,4]
[330600758,1719609071937,-2010.28,0.00023835,4]
[330600759,1719609071946,-4814.91,0.00023835,4]
[330600760,1719609071956,-11513.48,0.00023835,4]
[330600761,1719609071966,-500.0,0.00023835,4]
[330600762,1719609071975,-506.2,0.00023835,4]
[330600763,1719609071984,-10418.44,0.00023835,4]
[330600764,1719609071994,-500.0,0.00023835,4]
[330600765,1719609072005,-500.0,0.00023835,4]
[330600766,1719609072023,-500.0,0.00023835,4]
[330600767,1719609072033,-500.0,0.00023835,4]
[330600768,1719609072042,-500.0,0.00023835,4]
[330600769,1719609072051,-959.34,0.00023835,4]
[330600770,1719609072063,-655.11,0.00023835,4]
[330600771,1719609072072,-1894.29,0.00023835,4]
[330600772,1719609072081,-1813.93,0.00023835,4]
[330600773,1719609072091,-500.0,0.00023835,4]
[330600774,1719609072100,-1715.47,0.00023835,4]
[330600775,1719609072117,-1262.66,0.00023835,4]
[330600776,1719609072126,-500.0,0.00023835,4]
[330600777,1719609072135,-2194.15,0.00023835,4]
[330600778,1719609072145,-761.05,0.00023835,4]
[330600779,1719609072154,-535.3,0.00023835,4]
[330600780,1719609072163,-1055.6,0.00023835,4]
[330600781,1719609072173,-1710.79,0.00023835,4]
[330600782,1719609072182,-500.0,0.00023835,4]
[330600783,1719609072191,-528.59,0.00023835,4]
[330600784,1719609072200,-979.7,0.00023835,4]
[330600785,1719609072210,-500.0,0.00023835,4]
[330600786,1719609072219,-628.71,0.00023835,4]
[330600787,1719609072229,-750.32,0.00023835,4]
[330600788,1719609072238,-1021.86,0.00023835,4]
[330600789,1719609072247,-500.0,0.00023835,4]
[330600790,1719609072256,-586.77,0.00023835,4]
[330600791,1719609072267,-500.0,0.00023835,4]
[330600792,1719609072277,-10772.11,0.00023835,4]
[330600793,1719609072286,-740.26,0.00023835,4]
[330600794,1719609072295,-1018.02,0.00023835,4]
[330600795,1719609072305,-3099.44,0.00023835,4]
[330600796,1719609072314,-1461.16,0.00023835,4]
[330600797,1719609072323,-4038.76,0.00023835,4]
[330600798,1719609072332,-2850.21,0.00023835,4]
[330600799,1719609072341,-500.0,0.00023835,4]
[330600800,1719609072350,-669.76,0.00023835,4]
[330600801,1719609072359,-4127.34,0.00023835,4]
[330600802,1719609072369,-546.35,0.00023835,4]
[330600803,1719609072379,-500.0,0.00023835,4]
[330600804,1719609072388,-600.27,0.00023835,4]
[330600805,1719609072398,-500.0,0.00023835,4]
[330600806,1719609072407,-4987.38,0.00023835,4]
[330600807,1719609072416,-500.0,0.00023835,4]
[330600808,1719609072427,-3352.17,0.00023835,4]
[330600809,1719609072437,-621.88,0.00023835,4]
[330600810,1719609072448,-683.47,0.00023835,4]
[330600811,1719609072459,-1525.02,0.00023835,4]
[330600812,1719609072469,-23476.31,0.00023835,4]
[330600813,1719609072479,-500.0,0.00023835,4]
[330600814,1719609072489,-6462.45,0.00023835,4]
[330600815,1719609072498,-500.0,0.00023835,4]
[330600816,1719609072510,-9156.13,0.00023835,4]
[330600817,1719609072521,-1587.41,0.00023835,4]
[330600818,1719609072531,-500.0,0.00023835,4]
[330600819,1719609072541,-2718.89,0.00023835,4]
[330600820,1719609072551,-542.52006555,0.00023835,4]
[330600821,1719609072560,-1320.21,0.00023835,4]
[330600822,1719609072570,-11697.5,0.00023835,4]
[330600823,1719609072579,-444.0,0.00023836,2]
[330600824,1719609072589,-312.0,0.00023836,2]
[330600825,1719609072598,-350.0,0.00023887,2]
[330600826,1719609072608,-350.0,0.00023887,2]
[330600827,1719609072617,-166.32989118,0.000239,2]
[330600828,1719609072627,-600.0,0.00023917,2]
[330600829,1719609072637,-166.666666,0.00023969,2]
[330600830,1719609072646,-22495.0,0.00024,2]
[330600831,1719609072655,-58641.5090357,0.00024,2]
[330600832,1719609072665,-6071.46629594,0.00024,2]
[330600833,1719609072674,-500.0,0.00024109,4]
[330600834,1719609072686,-1053.33,0.00024109,4]
[330600835,1719609072702,-500.0,0.00024109,4]
[330600836,1719609072715,-581.35,0.00024109,4]
[330600837,1719609072724,-500.0,0.00024109,4]
[330600838,1719609072733,-500.0,0.00024109,4]
[330600839,1719609072743,-500.0,0.00024109,2]
[330600840,1719609072752,-2317.09,0.00024109,4]
[330600841,1719609072761,-922.96,0.00024109,4]
[330600842,1719609072770,-834.68,0.00024109,4]
[330600843,1719609072780,-500.0,0.00024109,4]
[330600844,1719609072790,-500.0,0.00024109,4]
[330600845,1719609072800,-500.0,0.00024109,4]
[330600846,1719609072810,-500.0,0.00024109,4]
[330600847,1719609072819,-803.38,0.00024109,4]
[330600848,1719609072829,-1513.65,0.00024109,4]
[330600849,1719609072839,-500.0,0.00024109,4]
[330600850,1719609072849,-500.0,0.00024109,4]
[330600851,1719609072860,-969.26,0.00024109,4]
[330600852,1719609072870,-1279.12,0.00024109,4]
[330600853,1719609072881,-580.44,0.00024109,4]
[330600854,1719609072892,-750.55,0.00024109,4]
[330600855,1719609072902,-527.85,0.00024109,4]
[330600856,1719609072911,-762.9,0.00024109,4]
[330600857,1719609072920,-500.0,0.00024109,4]
[330600858,1719609072929,-500.0,0.00024109,4]
[330600859,1719609072939,-794.3,0.00024109,4]
[330600860,1719609072948,-500.0,0.00024109,4]
[330600861,1719609072958,-500.0,0.00024109,4]
[330600862,1719609072967,-500.0,0.00024109,4]
[330600863,1719609072977,-503.63634639,0.00024109,4]
[330600864,1719609072987,-500.0,0.00024109,4]
[330600865,1719609072996,-526.04,0.00024109,4]
[330600866,1719609073008,-819.47,0.00024109,4]
[330600867,1719609073019,-905.98,0.00024109,4]
[330600868,1719609073029,-500.0,0.00024109,4]
[330600869,1719609073038,-500.0,0.00024109,4]
[330600870,1719609073048,-500.0,0.00024109,4]
[330600871,1719609073058,-1589.77,0.00024109,4]
[330600872,1719609073068,-500.0,0.00024109,4]
[330600873,1719609073078,-210.21911644,0.00024109,4]
[330600874,1719609073090,-1414.16,0.00024109,4]
[330600875,1719609073103,-514.41,0.00024109,4]
[330600876,1719609073112,-500.0,0.00024109,4]
[330600877,1719609073122,-549.62,0.00024109,4]
[330600878,1719609073131,-1020.77,0.00024109,4]
[330600879,1719609073141,-500.0,0.00024109,4]
[330600880,1719609073151,-2333.86,0.00024109,4]
[330600881,1719609073160,-500.0,0.00024109,4]
[330600882,1719609073169,-718.41,0.00024109,4]
[330600883,1719609073179,-632.14,0.00024109,4]
[330600884,1719609073189,-2254.28,0.00024109,4]
[330600885,1719609073198,-1134.77,0.00024109,4]
[330600886,1719609073210,-500.0,0.00024109,4]
[330600887,1719609073219,-500.0,0.00024109,4]
[330600888,1719609073229,-552.34,0.00024109,4]
[330600889,1719609073239,-655.59,0.00024109,4]
[330600890,1719609073248,-500.0,0.00024109,4]
[330600891,1719609073258,-500.0,0.00024109,4]
[330600892,1719609073267,-1584.44,0.00024109,4]
[330600893,1719609073277,-705.63,0.00024109,4]
[330600894,1719609073286,-500.0,0.00024109,4]
[330600895,1719609073296,-992.69,0.00024109,4]
[330600896,1719609073305,-963.94,0.00024109,4]
[330600897,1719609073315,-451.42819328,0.00024109,4]
[330600898,1719609073325,-2618.52,0.00024109,4]
[330600899,1719609073452,-500.0,0.00024109,4]
[330600900,1719609073464,-775.03,0.00024109,4]
[330600901,1719609073474,-500.0,0.00024109,4]
[330600902,1719609073482,-500.0,0.00024109,4]
[330600903,1719609073492,-500.0,0.00024109,4]
[330600904,1719609073501,-1047.09,0.00024109,4]
[330600905,1719609073510,-500.0,0.00024109,4]
[330600906,1719609073519,-597.64,0.00024109,4]
[330600907,1719609073529,-500.0,0.00024109,4]
[330600908,1719609073538,-1602.1,0.00024109,4]
[330600909,1719609073547,-619.46,0.00024109,4]
[330600910,1719609073556,-500.0,0.00024109,4]
[330600911,1719609073565,-1252.86,0.00024109,4]
[330600912,1719609073574,-748.7,0.00024109,4]
[330600913,1719609073583,-500.0,0.00024109,4]
[330600914,1719609073591,-725.68,0.00024109,4]
[330600915,1719609073600,-500.0,0.00024109,4]
[330600916,1719609073610,-3105.39,0.00024109,4]
[330600917,1719609073618,-500.0,0.00024109,4]
[330600918,1719609073627,-500.0,0.00024109,4]
[330600919,1719609073636,-500.0,0.00024109,4]
[330600920,1719609073645,-1391.86,0.00024109,4]
[330600921,1719609073656,-500.0,0.00024109,4]
[330600922,1719609073665,-1221.39,0.00024109,4]
[330600923,1719609073675,-598.89,0.00024109,4]
[330600924,1719609073684,-500.0,0.00024109,4]
[330600925,1719609073693,-761.97,0.00024109,4]
[330600926,1719609073703,-500.0,0.00024109,4]
[330600927,1719609073713,-532.06699095,0.00024109,4]
[330600928,1719609073723,-500.0,0.00024109,4]
[330600929,1719609073732,-1916.95,0.00024109,4]
[330600930,1719609073741,-500.0,0.00024109,4]
[330600931,1719609073750,-911.28,0.00024109,4]
[330600932,1719609073760,-500.0,0.00024109,4]
[330600933,1719609073769,-3430.95,0.00024109,4]
[330600934,1719609073779,-1274.5,0.00024109,2]
[330600935,1719609073788,-500.0,0.00024109,4]
[330600936,1719609073798,-786.07,0.00024109,4]
[330600937,1719609073807,-2096.46,0.00024109,4]
[330600938,1719609073816,-1472.43,0.00024109,4]
[330600939,1719609073826,-500.0,0.00024109,4]
[330600940,1719609073835,-32522.18,0.00024109,4]
[330600941,1719609073844,-500.0,0.00024109,4]
[330600942,1719609073853,-500.0,0.00024109,4]
[330600943,1719609073863,-713.1,0.00024109,4]
[330600944,1719609073873,-1080.39,0.00024109,4]
[330600945,1719609073883,-500.0,0.00024109,4]
[330600946,1719609073892,-2759.26,0.00024109,4]
[330600947,1719609073901,-1561.25,0.00024109,4]
[330600948,1719609073910,-1056.09,0.00024109,4]
[330600949,1719609073919,-500.0,0.00024109,4]
[330600950,1719609073929,-626.89,0.00024109,4]
[330600951,1719609073938,-644.23,0.00024109,4]
[330600952,1719609073948,-500.0,0.00024109,4]
[330600953,1719609073958,-919.74,0.00024109,4]
[330600954,1719609073968,-500.0,0.00024109,4]
[330600955,1719609073977,-500.0,0.00024109,4]
[330600956,1719609073986,-1508.74,0.00024109,4]
[330600957,1719609073999,-526.73,0.00024109,4]
[330600958,1719609074010,-522.16794036,0.00024109,4]
[330600959,1719609074022,-500.0,0.00024109,4]
[330600960,1719609074032,-500.0,0.00024109,4]
[330600961,1719609074040,-900.52,0.00024109,4]
[330600962,1719609074051,-2915.15,0.00024109,4]
[330600963,1719609074062,-1075.26,0.00024109,4]
[330600964,1719609074072,-2606.56,0.00024109,4]
[330600965,1719609074081,-500.0,0.00024109,4]
[330600966,1719609074090,-898.0,0.00024109,4]
[330600967,1719609074102,-1017.0,0.00024109,4]
[330600968,1719609074112,-500.0,0.00024109,4]
[330600969,1719609074121,-769.17,0.00024109,4]
[330600970,1719609074131,-724.43,0.00024109,4]
[330600971,1719609074139,-243.04161969,0.00024109,4]
[330600972,1719609074148,-500.0,0.00024109,4]
[330600973,1719609074158,-1811.19,0.00024109,4]
[330600974,1719609074167,-500.0,0.00024109,4]
[330600975,1719609074177,-402.66769407,0.00024109,4]
[330600976,1719609074186,-500.0,0.00024109,4]
[330600977,1719609074195,-500.0,0.00024109,4]
[330600978,1719609074205,-555.14,0.00024109,4]
[330600979,1719609074216,-745.75,0.00024109,4]
[330600980,1719609074225,-645.50983919,0.00024109,4]
[330600981,1719609074235,-1060.47,0.00024109,4]
[330600982,1719609074244,-1646.45,0.00024109,4]
[330600983,1719609074253,-561.23,0.00024109,4]
[330600984,1719609074262,-500.0,0.00024109,4]
[330600985,1719609074271,-500.0,0.00024109,4]
[330600986,1719609074280,-1636.48,0.00024109,4]
[330600987,1719609074289,-2903.41,0.00024109,4]
[330600988,1719609074299,-500.0,0.00024109,4]
[330600989,1719609074308,-882.01,0.00024109,4]
[330600990,1719609074317,-23113.58,0.00024109,4]
[330600991,1719609074326,-1643.03,0.00024109,4]
[330600992,1719609074335,-500.0,0.00024109,4]
[330600993,1719609074345,-628.52,0.00024109,4]
[330600994,1719609074354,-1414.53,0.00024109,4]
[330600995,1719609074362,-500.0,0.00024109,4]
[330600996,1719609074371,-500.0,0.00024109,4]
[330600997,1719609074380,-500.0,0.00024109,4]
[330600998,1719609074389,-500.0,0.00024109,4]
[330600999,1719609074398,-11320.71,0.00024109,4]
[330601000,1719609074407,-555.85,0.00024109,4]
[330601001,1719609074416,-500.0,0.00024109,4]
[330601002,1719609074424,-644.76,0.00024109,4]
[330601003,1719609074434,-585.25,0.00024109,4]
[330601004,1719609074443,-756.94,0.00024109,4]
[330601005,1719609074452,-500.0,0.00024109,4]
[330601006,1719609074464,-1188.67,0.00024109,4]
[330601007,1719609074473,-500.0,0.00024109,4]
[330601008,1719609074482,-1280.69,0.00024109,4]
[330601009,1719609074492,-788.02,0.00024109,4]
[330601010,1719609074501,-500.0,0.00024109,4]
[330601011,1719609074510,-3712.0,0.00024109,4]
[330601012,1719609074519,-2279.24,0.00024109,4]
[330601013,1719609074527,-500.0,0.00024109,4]
[330601014,1719609074536,-500.0,0.00024109,4]
[330601015,1719609074545,-4032.61,0.00024109,4]
[330601016,1719609074556,-227.79,0.00024109,4]
[330601017,1719609074565,-1001.0,0.00024109,4]
[330601018,1719609074574,-2069.86,0.00024109,4]
[330601019,1719609074583,-500.0,0.00024109,4]
[330601020,1719609074592,-5418.01,0.00024109,4]
[330601021,1719609074600,-826.19,0.00024109,4]
[330601022,1719609074609,-803.14,0.00024109,4]
[330601023,1719609074619,-939.69,0.00024109,4]
[330601024,1719609074627,-60694.4,0.00024109,4]
[330601025,1719609074637,-2175.07,0.00024109,4]
[330601026,1719609074646,-3733.28,0.00024109,4]
[330601027,1719609074655,-342.1554075,0.00024109,4]
[330601028,1719609074663,-534.17517912,0.00024109,4]
[330601029,1719609074673,-7121.33,0.00024109,4]
[330601030,1719609074682,-521.59,0.00024109,4]
[330601031,1719609074690,-500.0,0.00024109,4]
[330601032,1719609074699,-834.09,0.00024109,4]
[330601033,1719609074709,-4094.82,0.00024109,4]
[330601034,1719609074719,-582.3,0.00024109,4]
[330601035,1719609074728,-689.13,0.00024109,4]
[330601036,1719609074738,-1575.66,0.00024109,4]
[330601037,1719609074747,-1770.99,0.00024109,4]
[330601038,1719609074756,-12345.82,0.00024109,4]
[330601039,1719609074766,-651.08,0.00024109,4]
[330601040,1719609074775,-500.0,0.00024109,4]
[330601041,1719609074784,-500.0,0.00024109,4]
[330601042,1719609074793,-500.0,0.00024109,4]
[330601043,1719609074802,-1018.4,0.00024109,4]
[330601044,1719609074811,-311.41499687,0.00024109,4]
[330601045,1719609074820,-2468.56,0.00024109,4]
[330601046,1719609074829,-12723.98,0.00024109,4]
[330601047,1719609074838,-500.0,0.00024109,4]
[330601048,1719609074847,-1210.66,0.00024109,4]
[330601049,1719609074856,-500.0,0.00024109,2]
[330601050,1719609074865,-923.2,0.00024109,4]
[330601051,1719609074874,-2010.28,0.00024109,4]
[330601052,1719609074884,-4814.91,0.00024109,4]
[330601053,1719609074893,-11513.48,0.00024109,4]
[330601054,1719609074903,-500.0,0.00024109,4]
[330601055,1719609074912,-506.2,0.00024109,4]
[330601056,1719609074920,-10418.44,0.00024109,4]
[330601057,1719609074930,-500.0,0.00024109,4]
[330601058,1719609074939,-500.0,0.00024109,4]
[330601059,1719609074948,-500.0,0.00024109,4]
[330601060,1719609074957,-500.0,0.00024109,4]
[330601061,1719609074967,-500.0,0.00024109,4]
[330601062,1719609074976,-959.34,0.00024109,4]
[330601063,1719609074985,-655.11,0.00024109,4]
[330601064,1719609074994,-1894.29,0.00024109,4]
[330601065,1719609075004,-1813.93,0.00024109,4]
[330601066,1719609075018,-500.0,0.00024109,4]
[330601067,1719609075027,-1715.47,0.00024109,4]
[330601068,1719609075036,-1262.66,0.00024109,4]
[330601069,1719609075047,-500.0,0.00024109,4]
[330601070,1719609075057,-2194.15,0.00024109,4]
[330601071,1719609075067,-761.05,0.00024109,4]
[330601072,1719609075076,-535.3,0.00024109,4]
[330601073,1719609075086,-1055.6,0.00024109,4]
[330601074,1719609075098,-1710.79,0.00024109,4]
[330601075,1719609075108,-500.0,0.00024109,4]
[330601076,1719609075117,-528.59,0.00024109,4]
[330601077,1719609075127,-979.7,0.00024109,4]
[330601078,1719609075135,-500.0,0.00024109,4]
[330601079,1719609075144,-628.71,0.00024109,4]
[330601080,1719609075153,-750.32,0.00024109,4]
[330601081,1719609075162,-1021.86,0.00024109,4]
[330601082,1719609075171,-500.0,0.00024109,4]
[330601083,1719609075180,-586.77,0.00024109,4]
[330601084,1719609075189,-500.0,0.00024109,4]
[330601085,1719609075199,-10772.11,0.00024109,4]
[330601086,1719609075209,-740.26,0.00024109,4]
[330601087,1719609075219,-1018.02,0.00024109,4]
[330601088,1719609075228,-3099.44,0.00024109,4]
[330601089,1719609075237,-4038.76,0.00024109,4]
[330601090,1719609075246,-1461.16,0.00024109,4]
[330601091,1719609075255,-2850.21,0.00024109,4]
[330601092,1719609075265,-500.0,0.00024109,4]
[330601093,1719609075274,-669.76,0.00024109,4]
[330601094,1719609075283,-546.35,0.00024109,4]
[330601095,1719609075292,-500.0,0.00024109,4]
[330601096,1719609075301,-600.27,0.00024109,4]
[330601097,1719609075310,-500.0,0.00024109,4]
[330601098,1719609075319,-4987.38,0.00024109,4]
[330601099,1719609075328,-500.0,0.00024109,4]
[330601100,1719609075337,-3352.17,0.00024109,4]
[330601101,1719609075347,-621.88,0.00024109,4]
[330601102,1719609075356,-683.47,0.00024109,4]
[330601103,1719609075365,-1525.02,0.00024109,4]
[330601104,1719609075374,-23476.31,0.00024109,4]
[330601105,1719609075383,-500.0,0.00024109,4]
[330601106,1719609075392,-6462.45,0.00024109,4]
[330601107,1719609075401,-500.0,0.00024109,4]
[330601108,1719609075411,-9156.13,0.00024109,4]
[330601109,1719609075420,-1587.41,0.00024109,4]
[330601110,1719609075430,-500.0,0.00024109,4]
[330601111,1719609075440,-2718.89,0.00024109,4]
[330601112,1719609075451,-1320.21,0.00024109,4]
[330601113,1719609075459,-11697.5,0.00024109,4]
[330601114,1719609075468,-444.0,0.0002411,2]
[330601115,1719609075478,-312.0,0.0002411,2]
[330601116,1719609075487,-783.89562839,0.00024164,2]
[330601117,1719609075496,-444.0,0.00024164,2]
[330601118,1719609075505,-312.0,0.00024164,2]
[330601119,1719609075515,-150.80395486,0.00024199,7]
[330601120,1719609075524,-570.28647881,0.00024267,2]
[330601121,1719609075533,-450.0,0.00024281,2]
[330601122,1719609075542,-500.0,0.00024383,4]
[330601123,1719609075552,-1053.33,0.00024383,4]
[330601124,1719609075561,-500.0,0.00024383,4]
[330601125,1719609075571,-581.35,0.00024383,4]
[330601126,1719609075580,-500.0,0.00024383,4]
[330601127,1719609075590,-500.0,0.00024383,4]
[330601128,1719609075599,-500.0,0.00024383,2]
[330601129,1719609075608,-2317.09,0.00024383,4]
[330601130,1719609075617,-922.96,0.00024383,4]
[330601131,1719609075627,-834.68,0.00024383,4]
[330601132,1719609075636,-500.0,0.00024383,4]
[330601133,1719609075646,-500.0,0.00024383,4]
[330601134,1719609075655,-500.0,0.00024383,4]
[330601135,1719609075664,-500.0,0.00024383,4]
[330601136,1719609075675,-803.38,0.00024383,4]
[330601137,1719609075685,-1513.65,0.00024383,4]
[330601138,1719609075694,-500.0,0.00024383,4]
[330601139,1719609075704,-500.0,0.00024383,4]
[330601140,1719609075715,-969.26,0.00024383,4]
[330601141,1719609075725,-1279.12,0.00024383,4]
[330601142,1719609075734,-580.44,0.00024383,4]
[330601143,1719609075744,-750.55,0.00024383,4]
[330601144,1719609075753,-527.85,0.00024383,4]
[330601145,1719609075763,-762.9,0.00024383,4]
[330601146,1719609075772,-500.0,0.00024383,4]
[330601147,1719609075782,-500.0,0.00024383,4]
[330601148,1719609075792,-794.3,0.00024383,4]
[330601149,1719609075801,-500.0,0.00024383,4]
[330601150,1719609075811,-500.0,0.00024383,4]
[330601151,1719609075820,-500.0,0.00024383,4]
[330601152,1719609075831,-500.0,0.00024383,4]
[330601153,1719609075841,-526.04,0.00024383,4]
[330601154,1719609075851,-819.47,0.00024383,4]
[330601155,1719609075860,-905.98,0.00024383,4]
[330601156,1719609075869,-157.63661581,0.00024383,4]
[330601157,1719609075879,-500.0,0.00024383,4]
[330601158,1719609075888,-500.0,0.00024383,4]
[330601159,1719609075898,-1589.77,0.00024383,4]